Body Name,Body,Transaction Date,Value,Supplier,Description,Purchase Type,Cost Center,Department,Section
Chorley Borough Council,http://Statistics.Data.gov.uk/id/local-Authority/30UE,18/03/2019,89.44,Microsoft Azure,Cloud Storage set up on Microsoft Azure,Online Purchase,4512,Policy & Governance,Shared Financial Services
Chorley Borough Council,http://Statistics.Data.gov.uk/id/local-Authority/30UE,05/09/2018,120.00,CIWM Enterpirse Ltd,Waste Legislation Essentials - E-Learning Delegate registration for NAME REDACTED,Online Purchase,4736,Customer & Digital,Waste & Streetscene Services
Chorley Borough Council,http://Statistics.Data.gov.uk/id/local-Authority/30UE,17/09/2018,169.99,Argos,For replacement fridge for the Bengal St Depot,Online Purchase,4736,Customer & Digital,Waste & Streetscene Services
Chorley Borough Council,http://Statistics.Data.gov.uk/id/local-Authority/30UE,15/01/2019,28.75,Train Line,Train tickets Chorley to Manchester Oxford Road for Yotta Conference,Online Purchase,4736,Customer & Digital,Waste & Streetscene Services
Chorley Borough Council,http://Statistics.Data.gov.uk/id/local-Authority/30UE,30/01/2019,79.96,Chorley Yamaha Centre,Parts for service of Quad Bike (YJ16 EBN) ,Store Purchase,4736,Customer & Digital,Waste & Streetscene Services
Chorley Borough Council,http://Statistics.Data.gov.uk/id/local-Authority/30UE,04/02/2019,-18.00,trainline,refund for rail travel due to tickets not being used as the conference was cancelled for bad weather,Online Purchase,4736,Customer & Digital,Waste & Streetscene Services
Chorley Borough Council,http://Statistics.Data.gov.uk/id/local-Authority/30UE,06/02/2019,166.80,Chorley Yamaha,Part for Quad bike Yj16 EBN for repairs identified during winter servicing; Brake Pad kit Ball joint,Store Purchase,4736,Customer & Digital,Waste & Streetscene Services
Chorley Borough Council,http://Statistics.Data.gov.uk/id/local-Authority/30UE,04/03/2019,60.00,North West Prop shaft,Prop shaft repair on the prop shaft for the Wessex Gang mower,Store Purchase,4736,Customer & Digital,Waste & Streetscene Services
Chorley Borough Council,http://Statistics.Data.gov.uk/id/local-Authority/30UE,30/03/2019,234.00,Northwest Propshafts,Repairs to PTO shaft for Wessex Gang mower,Store Purchase,4736,Customer & Digital,Waste & Streetscene Services
Chorley Borough Council,http://Statistics.Data.gov.uk/id/local-Authority/30UE,04/09/2018,-9.95,Ebay,Slim Stand Flip Magnetic Leather case covers,Refund,4512,Early Intervention,Early Intervention & Support
Chorley Borough Council,http://Statistics.Data.gov.uk/id/local-Authority/30UE,04/09/2018,-9.95,Ebay,Refund for Slim stand Flip Magnetic Leather case cover,Refund,4512,Early Intervention,Early Intervention & Support
Chorley Borough Council,http://Statistics.Data.gov.uk/id/local-Authority/30UE,04/09/2018,9.95,Ebay,Slim Stand Flip Magnetic Leather case cover - accessorizeuk4215,Online Purchase,4512,Early Intervention,Early Intervention & Support
Chorley Borough Council,http://Statistics.Data.gov.uk/id/local-Authority/30UE,04/09/2018,9.95,Ebay,Slim Stand Flip Magnetic Leather case cover - innovazionsolutions 0308,Online Purchase,4512,Early Intervention,Early Intervention & Support
Chorley Borough Council,http://Statistics.Data.gov.uk/id/local-Authority/30UE,04/09/2018,9.95,Ebay,Slim stand flip magnetic leather case paylesshub23,Online Purchase,4512,Early Intervention,Early Intervention & Support
Chorley Borough Council,http://Statistics.Data.gov.uk/id/local-Authority/30UE,04/09/2018,41.86,Argos,IT purchase,Online Purchase,4512,Early Intervention,Early Intervention & Support
Chorley Borough Council,http://Statistics.Data.gov.uk/id/local-Authority/30UE,04/09/2018,68.70,Ebay,100% Genuine Tempered Glass Screen Protector Cover for iPad 5 Air,Online Purchase,4512,Early Intervention,Early Intervention & Support
Chorley Borough Council,http://Statistics.Data.gov.uk/id/local-Authority/30UE,12/09/2018,19.12,Crossbow Eduction,Screen Monitor Overlays,Online Purchase,4512,Early Intervention,Early Intervention & Support
Chorley Borough Council,http://Statistics.Data.gov.uk/id/local-Authority/30UE,13/09/2018,100.00,Tapas Esteban,Buffet for 20people for NAME REDACTED,Store Purchase,5929,Early Intervention,Early Intervention & Support
Chorley Borough Council,http://Statistics.Data.gov.uk/id/local-Authority/30UE,18/09/2018,125.39,Eventbrite,Deal training on 28 September,Online Purchase,4618,Early Intervention,Early Intervention & Support
Chorley Borough Council,http://Statistics.Data.gov.uk/id/local-Authority/30UE,18/09/2018,250.00,Trainline,Train Tickets to London for NAME REDACTED on 3 October 2018,Online Purchase,4618,Early Intervention,Early Intervention & Support
Chorley Borough Council,http://Statistics.Data.gov.uk/id/local-Authority/30UE,21/09/2018,259.00,Next,"Wallpaper, cushions etc for Primrose Gardens",Store Purchase,5128,Early Intervention,Early Intervention & Support
Chorley Borough Council,http://Statistics.Data.gov.uk/id/local-Authority/30UE,28/09/2018,19.00,Shutterstock,"365 day Subscription, Standard License with 10 downloads per month",Online Purchase,4301,Early Intervention,Early Intervention & Support
Chorley Borough Council,http://Statistics.Data.gov.uk/id/local-Authority/30UE,03/10/2018,8.68,Ebay,Cover for Laptop for NAME REDACTED,Online Purchase,4614,Early Intervention,Early Intervention & Support
Chorley Borough Council,http://Statistics.Data.gov.uk/id/local-Authority/30UE,03/10/2018,90.90,Trainline,Train travel to MIPIM event for NAME REDACTED,Online Purchase,4007,Early Intervention,Early Intervention & Support
Chorley Borough Council,http://Statistics.Data.gov.uk/id/local-Authority/30UE,11/10/2018,58.00,Homebase,Homebase purchase for Primrose Gardens,Store Purchase,5128,Early Intervention,Early Intervention & Support
Chorley Borough Council,http://Statistics.Data.gov.uk/id/local-Authority/30UE,11/10/2018,107.05,Next,Curtains & Cushions,Store Purchase,5128,Early Intervention,Early Intervention & Support
Chorley Borough Council,http://Statistics.Data.gov.uk/id/local-Authority/30UE,12/10/2018,29.98,Posturite,"21.5"" Monitor overlay - sky blue",Online Purchase,4512,Early Intervention,Early Intervention & Support
Chorley Borough Council,http://Statistics.Data.gov.uk/id/local-Authority/30UE,12/10/2018,43.00,Ebay,Siemens OptiPoint 50 for NAME REDACTED,Online Purchase,4512,Early Intervention,Health & Wellbeing
Chorley Borough Council,http://Statistics.Data.gov.uk/id/local-Authority/30UE,12/10/2018,65.00,Next,Mauve Curtains,Store Purchase,5128,Early Intervention,Early Intervention & Support
Chorley Borough Council,http://Statistics.Data.gov.uk/id/local-Authority/30UE,16/10/2018,62.20,Northern Rail,Train travel for NAME REDACTED 16/10/18,Store Purchase,4600,Early Intervention,Early Intervention & Support
Chorley Borough Council,http://Statistics.Data.gov.uk/id/local-Authority/30UE,18/10/2018,-137.00,Next,Curtains & wallpaper from Next for Primrose Gardens,Refund,5128,Early Intervention,Early Intervention & Support
Chorley Borough Council,http://Statistics.Data.gov.uk/id/local-Authority/30UE,19/10/2018,-65.00,Next,Refund from Next for Curtains bought for Primrose Gardens,Refund,5128,Early Intervention,Early Intervention & Support
Chorley Borough Council,http://Statistics.Data.gov.uk/id/local-Authority/30UE,23/10/2018,14.99,Argos,Purchase of Binatone phone,Online Purchase,4512,Early Intervention,Early Intervention & Support
Chorley Borough Council,http://Statistics.Data.gov.uk/id/local-Authority/30UE,24/10/2018,43.50,Bath Publishing,Interpreting the NPPF: The new National Planning Policy Framework,Online Purchase,5930,Early Intervention,Early Intervention & Support
Chorley Borough Council,http://Statistics.Data.gov.uk/id/local-Authority/30UE,24/10/2018,53.00,Trainline,Train tickets for NAME REDACTED to an event in Carlisle,Online Purchase,5930,Early Intervention,Early Intervention & Support
Chorley Borough Council,http://Statistics.Data.gov.uk/id/local-Authority/30UE,25/10/2018,104.93,Argos,purchase of 7 spirit corded telephone,Online Purchase,4512,Early Intervention,Early Intervention & Support
Chorley Borough Council,http://Statistics.Data.gov.uk/id/local-Authority/30UE,29/10/2018,19.00,Shutterstock,"365 day Subscription, Standard License with 10 downloads per month",Online Purchase,4301,Early Intervention,Early Intervention & Support
Chorley Borough Council,http://Statistics.Data.gov.uk/id/local-Authority/30UE,06/11/2018,92.00,Trainline,Train tickets for NAME REDACTED to Leeds on 12 Nov,Online Purchase,5915,Early Intervention,Early Intervention & Support
Chorley Borough Council,http://Statistics.Data.gov.uk/id/local-Authority/30UE,12/11/2018,123.76,Patchsave Solutions,Purchase of Fibre Patch Cables,Online Purchase,4512,Early Intervention,Early Intervention & Support
Chorley Borough Council,http://Statistics.Data.gov.uk/id/local-Authority/30UE,19/11/2018,13.99,Ebay,Samsun Galaxy Touch Screen Digitizer from elize.fittingshop,Online Purchase,4512,Early Intervention,Early Intervention & Support
Chorley Borough Council,http://Statistics.Data.gov.uk/id/local-Authority/30UE,28/11/2018,19.00,Shutterstock,"365 day Subscription, Standard License with 10 downloads per month",Online Purchase,4301,Early Intervention,Early Intervention & Support
Chorley Borough Council,http://Statistics.Data.gov.uk/id/local-Authority/30UE,29/11/2018,178.10,Trainline,Train tickets for NAME REDACTED and two other return to Leeds on 6/12/18,Online Purchase,5915,Early Intervention,Early Intervention & Support
Chorley Borough Council,http://Statistics.Data.gov.uk/id/local-Authority/30UE,29/11/2018,193.50,Premier Inn,Premier Inn Booking for NAME REDACTED Northampton stay on 25/02/2019,Online Purchase,4315,Early Intervention,Early Intervention & Support
Chorley Borough Council,http://Statistics.Data.gov.uk/id/local-Authority/30UE,01/12/2018,3.89,Ebay,Leather Flip Card Wallet Stand,Online Purchase,4512,Early Intervention,Early Intervention & Support
Chorley Borough Council,http://Statistics.Data.gov.uk/id/local-Authority/30UE,01/12/2018,4.54,Ebay,Wristband Replacement Accessory 01/12/18,Online Purchase,4512,Early Intervention,Early Intervention & Support
Chorley Borough Council,http://Statistics.Data.gov.uk/id/local-Authority/30UE,04/12/2018,11.91,Cartridgesave,Cartridge Ribbon on Customer Service`s receipt machine,Online Purchase,4310,Early Intervention,Early Intervention & Support
Chorley Borough Council,http://Statistics.Data.gov.uk/id/local-Authority/30UE,04/12/2018,95.70,Trainline,Train tickets for NAME REDACTED to London 18/1/2019,Online Purchase,4613,Early Intervention,Early Intervention & Support
Chorley Borough Council,http://Statistics.Data.gov.uk/id/local-Authority/30UE,06/12/2018,194.00,Ebay,HQ Genuine Tempered Glass Film Screen Protector,Online Purchase,4512,Early Intervention,Early Intervention & Support
Chorley Borough Council,http://Statistics.Data.gov.uk/id/local-Authority/30UE,18/12/2018,126.00,Wortley House Hotel,Accommodation for two people on 5/2/2018,Online Purchase,4315,Early Intervention,Early Intervention & Support
Chorley Borough Council,http://Statistics.Data.gov.uk/id/local-Authority/30UE,21/12/2018,226.00,Pennine103office,Court fees in case of NAME REDACTED,Online Purchase,4614,Early Intervention,Early Intervention & Support
Chorley Borough Council,http://Statistics.Data.gov.uk/id/local-Authority/30UE,29/12/2018,19.00,Shutterstock,"365 day subscription, standard license with 10 downloads per month",Online Purchase,4301,Early Intervention,Early Intervention & Support
Chorley Borough Council,http://Statistics.Data.gov.uk/id/local-Authority/30UE,07/01/2019,-194.00,Ebay,Refund for Screen Protector 194.00,Refund,4512,Early Intervention,Early Intervention & Support
Chorley Borough Council,http://Statistics.Data.gov.uk/id/local-Authority/30UE,08/01/2019,69.30,Ebay,Purchase of PU Leather Stand Case Covers 18 x 3.85 Total 69.30 Seller: sbmobiles (2423),Online Purchase,4512,Early Intervention,Early Intervention & Support
Chorley Borough Council,http://Statistics.Data.gov.uk/id/local-Authority/30UE,08/01/2019,149.50,Ebay,Real-Genuine Tempered Glass film LCD Scree Protector for IPad - Seller Reedax (18794),Online Purchase,4512,Early Intervention,Early Intervention & Support
Chorley Borough Council,http://Statistics.Data.gov.uk/id/local-Authority/30UE,10/01/2019,274.37,Thawte Digicert,SSL Web Server - 2 years Certificate,Online Purchase,4512,Early Intervention,Early Intervention & Support
Chorley Borough Council,http://Statistics.Data.gov.uk/id/local-Authority/30UE,10/01/2019,849.57,Thawte digicert,Web server certificate for 2 years,Online Purchase,4512,Early Intervention,Early Intervention & Support
Chorley Borough Council,http://Statistics.Data.gov.uk/id/local-Authority/30UE,22/01/2019,20.88,Ebay,6 x 1m Display Port to HDMI Male Plug Display/Monitor/TV Cable Lead Seller:luckydigis (4985),Online Purchase,4512,Early Intervention,Early Intervention & Support
Chorley Borough Council,http://Statistics.Data.gov.uk/id/local-Authority/30UE,22/01/2019,23.52,Ebay,1m Display Port DP to HMDI,Online Purchase,4512,Early Intervention,Early Intervention & Support
Chorley Borough Council,http://Statistics.Data.gov.uk/id/local-Authority/30UE,24/01/2019,7.70,Ebay,2m Display Port DP Plug,Online Purchase,4512,Early Intervention,Early Intervention & Support
Chorley Borough Council,http://Statistics.Data.gov.uk/id/local-Authority/30UE,24/01/2019,24.90,Ebay,3m HDMI Cable High speed 10 x 2.49 - Total 24.90 Seller: bluechargedirect (1222860),Online Purchase,4512,Early Intervention,Early Intervention & Support
Chorley Borough Council,http://Statistics.Data.gov.uk/id/local-Authority/30UE,29/01/2019,19.00,Shutterstock,365 day Subscription Standard License,Online Purchase,4512,Early Intervention,Early Intervention & Support
Chorley Borough Council,http://Statistics.Data.gov.uk/id/local-Authority/30UE,04/02/2019,19.00,Premier Inn,Breakfast supplied to person affect from Adl fire,Online Purchase,4600,Early Intervention,Health & Wellbeing
Chorley Borough Council,http://Statistics.Data.gov.uk/id/local-Authority/30UE,04/02/2019,66.00,Premier Inn,Accommodation for Adlington Fire,Online Purchase,4600,Early Intervention,Health & Wellbeing
Chorley Borough Council,http://Statistics.Data.gov.uk/id/local-Authority/30UE,04/02/2019,75.50,Premier inn,Accommodation on 04/02/19 Reservation No AJAR69633,Online Purchase,4600,Early Intervention,Early Intervention & Support
Chorley Borough Council,http://Statistics.Data.gov.uk/id/local-Authority/30UE,04/02/2019,85.00,Premier Inn,Accommodation & breakfast for resident during Adlington fire on 04/02/19,Online Purchase,4600,Early Intervention,Early Intervention & Support
Chorley Borough Council,http://Statistics.Data.gov.uk/id/local-Authority/30UE,04/02/2019,85.00,Premier Inn,Accommodation for overnight during Adl fire 04/02/2019 Reference no AJAR69630,Online Purchase,4600,Early Intervention,Early Intervention & Support
Chorley Borough Council,http://Statistics.Data.gov.uk/id/local-Authority/30UE,04/02/2019,213.00,Welcome Break,Accommodation for resident during Adlington Fire Booking Ref 0755BK82465/1/1,Online Purchase,4600,Early Intervention,Early Intervention & Support
Chorley Borough Council,http://Statistics.Data.gov.uk/id/local-Authority/30UE,04/02/2019,330.50,Premier Inn,Accommodation for persons affected by Adl Fire Ref AJAR 69629,Online Purchase,4600,Early Intervention,Health & Wellbeing
Chorley Borough Council,http://Statistics.Data.gov.uk/id/local-Authority/30UE,07/02/2019,34.80,ebay,Purchase of 1m Display Port DP Port,Online Purchase,4512,Early Intervention,Early Intervention & Support
Chorley Borough Council,http://Statistics.Data.gov.uk/id/local-Authority/30UE,14/02/2019,46.80,Trainline,Train booking for NAME REDACTED from Parbold to Leeds,Online Purchase,5915,Early Intervention,Early Intervention & Support
Chorley Borough Council,http://Statistics.Data.gov.uk/id/local-Authority/30UE,14/02/2019,103.19,Eazyview,Tradesman Record,Online Purchase,4613,Early Intervention,Early Intervention & Support
Chorley Borough Council,http://Statistics.Data.gov.uk/id/local-Authority/30UE,19/02/2019,124.97,Patchsave Solutions,Various selection of cable ties for IT,Online Purchase,4512,Early Intervention,Early Intervention & Support
Chorley Borough Council,http://Statistics.Data.gov.uk/id/local-Authority/30UE,22/02/2019,52.45,Amazon,two laptop bags for NAME REDACTED,Online Purchase,4310,Early Intervention,Early Intervention & Support
Chorley Borough Council,http://Statistics.Data.gov.uk/id/local-Authority/30UE,26/02/2019,19.00,Shutterstock,Stutterstock Receipt for February`s subscription,Online Purchase,4301,Early Intervention,Early Intervention & Support
Chorley Borough Council,http://Statistics.Data.gov.uk/id/local-Authority/30UE,05/03/2019,39.20,Ebay,Case for Iphone,Online Purchase,4512,Early Intervention,Early Intervention & Support
Chorley Borough Council,http://Statistics.Data.gov.uk/id/local-Authority/30UE,06/03/2019,24.97,Amazon,Purchase of case for Apple iPad Mini and Wireless Keyboard & Mouse Combo,Online Purchase,4512,Early Intervention,Early Intervention & Support
Chorley Borough Council,http://Statistics.Data.gov.uk/id/local-Authority/30UE,13/03/2019,64.29,Amazon,10 x Benfei Display Port for ICT,Online Purchase,4512,Early Intervention,Early Intervention & Support
Chorley Borough Council,http://Statistics.Data.gov.uk/id/local-Authority/30UE,20/03/2019,54.10,Trainline,Train tickets for NAME REDACTED to Leeds 25.03.19,Online Purchase,5915,Early Intervention,Early Intervention & Support
Chorley Borough Council,http://Statistics.Data.gov.uk/id/local-Authority/30UE,22/03/2019,20.75,DAC Technology,ipad Keyboard cases for ICT,Online Purchase,4512,Early Intervention,Early Intervention & Support
Chorley Borough Council,http://Statistics.Data.gov.uk/id/local-Authority/30UE,17/09/2018,178.50,H M Courts,Liability Orders 357 for hearing date 25.10.2018,Court Fees,4310,Customer & Digital,Customer Transformation
Chorley Borough Council,http://Statistics.Data.gov.uk/id/local-Authority/30UE,22/10/2018,147.50,H M Court,295 liability orders paid for hearing date 22.11.2018,Court Fees,4310,Customer & Digital,Customer Transformation
Chorley Borough Council,http://Statistics.Data.gov.uk/id/local-Authority/30UE,19/11/2018,125.00,HM Courts,250 Liability Orders for hearing date 13.12.2018,Court Fees,4310,Customer & Digital,Customer Transformation
Chorley Borough Council,http://Statistics.Data.gov.uk/id/local-Authority/30UE,17/12/2018,177.50,HM Courts,Liability Orders 355 for hearing 17.01.2019,Court Fees,4310,Customer & Digital,Customer Transformation
Chorley Borough Council,http://Statistics.Data.gov.uk/id/local-Authority/30UE,28/01/2019,190.50,HM Courts,281 liability orders - paid 190.50 for hearing 21st Feb 2019,Court Fees,4310,Customer & Digital,Customer Transformation
Chorley Borough Council,http://Statistics.Data.gov.uk/id/local-Authority/30UE,18/03/2019,135.50,HM Courts,liability orders 270 for hearing 25.04.2019,Court Fees,4310,Customer & Digital,Customer Transformation
Chorley Borough Council,http://Statistics.Data.gov.uk/id/local-Authority/30UE,06/09/2018,10.79,EE,Phone Purchase,Store Purchase,5929,Chief Executive,Office of Chief Executive
Chorley Borough Council,http://Statistics.Data.gov.uk/id/local-Authority/30UE,06/09/2018,79.46,Argos,Various Items,Store Purchase,5929,Chief Executive,Office of Chief Executive
Chorley Borough Council,http://Statistics.Data.gov.uk/id/local-Authority/30UE,06/09/2018,118.09,Tesco,Various Items Purchased,Store Purchase,5929,Chief Executive,Office of Chief Executive
Chorley Borough Council,http://Statistics.Data.gov.uk/id/local-Authority/30UE,12/09/2018,17.35,Kashmir Watan Food,Food Items,Store Purchase,5929,Chief Executive,Office of Chief Executive
Chorley Borough Council,http://Statistics.Data.gov.uk/id/local-Authority/30UE,12/09/2018,35.76,Asda,Food Shopping,Store Purchase,5929,Chief Executive,Office of Chief Executive
Chorley Borough Council,http://Statistics.Data.gov.uk/id/local-Authority/30UE,10/10/2018,14.35,TrainLine,Train tickets for NAME REDACTED to attend event in Manchester,Online Purchase,4001,Chief Executive,Office of Chief Executive
Chorley Borough Council,http://Statistics.Data.gov.uk/id/local-Authority/30UE,19/10/2018,7.99,TK Maxx,Wall Decoration for Primrose Gardens,Store Purchase,5128,Chief Executive,Office of Chief Executive
Chorley Borough Council,http://Statistics.Data.gov.uk/id/local-Authority/30UE,19/10/2018,91.00,NEXT,Items for Primrose Gardens,Store Purchase,5128,Chief Executive,Office of Chief Executive
Chorley Borough Council,http://Statistics.Data.gov.uk/id/local-Authority/30UE,19/10/2018,184.05,NEXT,Items for Primrose Gardens,Store Purchase,5128,Chief Executive,Office of Chief Executive
Chorley Borough Council,http://Statistics.Data.gov.uk/id/local-Authority/30UE,22/10/2018,14.99,TK Maxx,Wall Decorations for Primrose Gardens,Store Purchase,5128,Chief Executive,Office of Chief Executive
Chorley Borough Council,http://Statistics.Data.gov.uk/id/local-Authority/30UE,22/10/2018,27.00,Furniture 123,"adjustment, original inv raised for 134.96 was without VAT - Vat required therefore adjustment of 27",Online Purchase,5128,Chief Executive,Office of Chief Executive
Chorley Borough Council,http://Statistics.Data.gov.uk/id/local-Authority/30UE,22/10/2018,40.00,ASDA,Items for Primrose Gardens,Store Purchase,5128,Chief Executive,Office of Chief Executive
Chorley Borough Council,http://Statistics.Data.gov.uk/id/local-Authority/30UE,22/10/2018,131.49,Dunelm,Items for Primrose Gardens,Store Purchase,5128,Chief Executive,Office of Chief Executive
Chorley Borough Council,http://Statistics.Data.gov.uk/id/local-Authority/30UE,22/10/2018,134.96,Furniture 123,Furniture for Primrose Gardens,Online Purchase,5128,Chief Executive,Office of Chief Executive
Chorley Borough Council,http://Statistics.Data.gov.uk/id/local-Authority/30UE,22/10/2018,186.21,The Range,Items for Primrose Gardens,Store Purchase,5128,Chief Executive,Office of Chief Executive
Chorley Borough Council,http://Statistics.Data.gov.uk/id/local-Authority/30UE,24/10/2018,79.92,Asda,Items for Primrose Gardnes,Store Purchase,5128,Chief Executive,Office of Chief Executive
Chorley Borough Council,http://Statistics.Data.gov.uk/id/local-Authority/30UE,25/10/2018,73.28,The Range,Items for Primrose Gardens,Store Purchase,5128,Chief Executive,Office of Chief Executive
Chorley Borough Council,http://Statistics.Data.gov.uk/id/local-Authority/30UE,25/10/2018,132.50,Dunelm,Items for Primrose Gardens,Store Purchase,5128,Chief Executive,Office of Chief Executive
Chorley Borough Council,http://Statistics.Data.gov.uk/id/local-Authority/30UE,26/10/2018,99.91,Appliances DIrect,Light fitting for Primrose Gardens,Online Purchase,5128,Chief Executive,Office of Chief Executive
Chorley Borough Council,http://Statistics.Data.gov.uk/id/local-Authority/30UE,26/10/2018,189.90,Furniture 123,Items for Primrose Gardens,Online Purchase,5128,Chief Executive,Office of Chief Executive
Chorley Borough Council,http://Statistics.Data.gov.uk/id/local-Authority/30UE,30/10/2018,23.50,Argos,Items for Primrose Gardens,Store Purchase,5128,Chief Executive,Office of Chief Executive
Chorley Borough Council,http://Statistics.Data.gov.uk/id/local-Authority/30UE,30/10/2018,62.65,Wilcocks,Items for Primrose Gardens,Store Purchase,5128,Chief Executive,Office of Chief Executive
Chorley Borough Council,http://Statistics.Data.gov.uk/id/local-Authority/30UE,21/11/2018,5.98,B &amp; M,Items for Syrian Houses,Store Purchase,5929,Chief Executive,Office of Chief Executive
Chorley Borough Council,http://Statistics.Data.gov.uk/id/local-Authority/30UE,21/11/2018,16.62,Post Office,Returning items back to Appliance Direct,Store Purchase,5128,Chief Executive,Office of Chief Executive
Chorley Borough Council,http://Statistics.Data.gov.uk/id/local-Authority/30UE,21/11/2018,43.16,EE,EE mobiles,Store Purchase,5929,Chief Executive,Office of Chief Executive
Chorley Borough Council,http://Statistics.Data.gov.uk/id/local-Authority/30UE,21/11/2018,100.98,Argos,Syrian Refugee Items,Store Purchase,5929,Chief Executive,Office of Chief Executive
Chorley Borough Council,http://Statistics.Data.gov.uk/id/local-Authority/30UE,26/11/2018,450.54,Tesco,FOod shopping for Syrian families,Online Purchase,5929,Chief Executive,Office of Chief Executive
Chorley Borough Council,http://Statistics.Data.gov.uk/id/local-Authority/30UE,27/11/2018,6.99,B &amp; M,Items for Syrian Families,Store Purchase,5929,Chief Executive,Office of Chief Executive
Chorley Borough Council,http://Statistics.Data.gov.uk/id/local-Authority/30UE,27/11/2018,60.97,B &amp; M,Items for Syrian Families,Store Purchase,5929,Chief Executive,Office of Chief Executive
Chorley Borough Council,http://Statistics.Data.gov.uk/id/local-Authority/30UE,27/11/2018,68.61,Kashmir Watan Food Store,Items for Syrian Families,Store Purchase,5929,Chief Executive,Office of Chief Executive
Chorley Borough Council,http://Statistics.Data.gov.uk/id/local-Authority/30UE,27/11/2018,101.43,B &amp; M,Items for Syrian Families,Store Purchase,5929,Chief Executive,Office of Chief Executive
Chorley Borough Council,http://Statistics.Data.gov.uk/id/local-Authority/30UE,11/12/2018,-89.97,Appliance Direct,REFUND FOR ITEMS RETURNED,Online Purchase,5128,Chief Executive,Office of Chief Executive
Chorley Borough Council,http://Statistics.Data.gov.uk/id/local-Authority/30UE,11/12/2018,-9.95,Appliance Direct,REFUND FOR items returned,Online Purchase,5128,Chief Executive,Office of Chief Executive
Chorley Borough Council,http://Statistics.Data.gov.uk/id/local-Authority/30UE,11/12/2018,39.98,Argos,Heaters for Syrian Families,Store Purchase,5110,Chief Executive,Office of Chief Executive
Chorley Borough Council,http://Statistics.Data.gov.uk/id/local-Authority/30UE,14/12/2018,14.35,Trainline,Train Tickets for NAME REDACTED,Online Purchase,4001,Chief Executive,Office of Chief Executive
Chorley Borough Council,http://Statistics.Data.gov.uk/id/local-Authority/30UE,19/12/2018,47.50,Asda,Items for Cotswold Christmas Party,Store Purchase,5925,Chief Executive,Office of Chief Executive
Chorley Borough Council,http://Statistics.Data.gov.uk/id/local-Authority/30UE,19/12/2018,69.99,Argos,Telephones for Cotswold House,Store Purchase,5925,Chief Executive,Office of Chief Executive
Chorley Borough Council,http://Statistics.Data.gov.uk/id/local-Authority/30UE,15/01/2019,9.00,Amazon,Bag for Civics,Online Purchase,4333,Chief Executive,Office of Chief Executive
Chorley Borough Council,http://Statistics.Data.gov.uk/id/local-Authority/30UE,16/01/2019,33.71,Amazon,Staple Gun & staples for NAME REDACTED @ Astley,Online Purchase,5244,Chief Executive,Office of Chief Executive
Chorley Borough Council,http://Statistics.Data.gov.uk/id/local-Authority/30UE,18/01/2019,93.60,Trainline,Train Tickets for NAME REDACTED,Online Purchase,4322,Chief Executive,Office of Chief Executive
Chorley Borough Council,http://Statistics.Data.gov.uk/id/local-Authority/30UE,22/01/2019,11.99,IONOS,Renewal for Strawberryfields,Online Purchase,5314,Chief Executive,Office of Chief Executive
Chorley Borough Council,http://Statistics.Data.gov.uk/id/local-Authority/30UE,22/01/2019,15.59,IONOS,Renewal for Strawberryfields,Online Purchase,5314,Chief Executive,Office of Chief Executive
Chorley Borough Council,http://Statistics.Data.gov.uk/id/local-Authority/30UE,22/02/2019,24.00,Financial Conduct Authority,Mutuals Public Register 2 x CCH payments,Online Purchase,4001,Chief Executive,Office of Chief Executive
Chorley Borough Council,http://Statistics.Data.gov.uk/id/local-Authority/30UE,04/03/2019,13.00,CHORLEY INTERCHANGE LIMITED,(CS01) Confirmation statement Barclays ref: 1815512854861877,Online Purchase,4707,Chief Executive,Office of Chief Executive
Chorley Borough Council,http://Statistics.Data.gov.uk/id/local-Authority/30UE,07/03/2019,-113.53,Sprout social,Corporate Plan - duplicated entry,Online Purchase,4301,Chief Executive,Office of Chief Executive
Chorley Borough Council,http://Statistics.Data.gov.uk/id/local-Authority/30UE,07/03/2019,113.53,SPROUT SOCIAL,Corporate plan,Online Purchase,4301,Chief Executive,Office of Chief Executive
Chorley Borough Council,http://Statistics.Data.gov.uk/id/local-Authority/30UE,07/03/2019,117.18,Sprout Social,Corporate Plan 07/03/2019 to 07/04/2019,Online Purchase,4301,Chief Executive,Office of Chief Executive
Chorley Borough Council,http://Statistics.Data.gov.uk/id/local-Authority/30UE,26/03/2019,0.13,Ionos,write off,Online Purchase,5314,Chief Executive,Office of Chief Executive
Chorley Borough Council,http://Statistics.Data.gov.uk/id/local-Authority/30UE,26/03/2019,"3,720.45",Sprout Social,Reminder of annual subscription,Online Purchase,4301,Chief Executive,Office of Chief Executive
Chorley Borough Council,http://Statistics.Data.gov.uk/id/local-Authority/30UE,01/09/2018,36.57,Indeed,Indeed Job Adverts for August.,Online Purchase,4400,Policy & Governance,"Legal, Democratic & HR Service"
Chorley Borough Council,http://Statistics.Data.gov.uk/id/local-Authority/30UE,02/09/2018,7.99,Amazon,Refunded item,Online Purchase,5244,Policy & Governance,Communications & Events
Chorley Borough Council,http://Statistics.Data.gov.uk/id/local-Authority/30UE,13/09/2018,46.02,Survey Monkey,Survey monkey - Advantage additional seat (team).,Online Purchase,5400,Policy & Governance,Communications & Events
Chorley Borough Council,http://Statistics.Data.gov.uk/id/local-Authority/30UE,14/09/2018,125.00,EB Making Change Happen,EB Making Change happen course purchased for HR.,Online Purchase,4400,Policy & Governance,"Legal, Democratic & HR Service"
Chorley Borough Council,http://Statistics.Data.gov.uk/id/local-Authority/30UE,17/09/2018,43.47,UK Wristbands Ltd,Wristbands bought by civics for Lancastrian event.,Online Purchase,4336,Policy & Governance,"Legal, Democratic & HR Service"
Chorley Borough Council,http://Statistics.Data.gov.uk/id/local-Authority/30UE,19/09/2018,41.20,THE COAL AUTHORITY,The coal authority - Legal.,Online Purchase,4100,Policy & Governance,"Legal, Democratic & HR Service"
Chorley Borough Council,http://Statistics.Data.gov.uk/id/local-Authority/30UE,25/09/2018,-7.99,Amazon,Amazon prime refund.,Refund,5244,Policy & Governance,Communications & Events
Chorley Borough Council,http://Statistics.Data.gov.uk/id/local-Authority/30UE,25/09/2018,2.68,Amazon,Amazon Halloween purchases for events.,Online Purchase,5244,Policy & Governance,Communications & Events
Chorley Borough Council,http://Statistics.Data.gov.uk/id/local-Authority/30UE,25/09/2018,11.42,Amazon,Amazon Halloween purchase for Astley Hall Halloween events.,Online Purchase,5244,Policy & Governance,Communications & Events
Chorley Borough Council,http://Statistics.Data.gov.uk/id/local-Authority/30UE,25/09/2018,15.88,Amazon,Astley Hall Halloween purchase for event.,Online Purchase,5244,Policy & Governance,Communications & Events
Chorley Borough Council,http://Statistics.Data.gov.uk/id/local-Authority/30UE,25/09/2018,40.99,Amazon,Amazon Halloween purchase for Astley Halloween event.,Online Purchase,5244,Policy & Governance,Communications & Events
Chorley Borough Council,http://Statistics.Data.gov.uk/id/local-Authority/30UE,25/09/2018,150.00,WWW.SOLACE.ORG.UK,Solace group membership renewal for NAME REDACTED.,Online Purchase,4006,Policy & Governance,"Legal, Democratic & HR Service"
Chorley Borough Council,http://Statistics.Data.gov.uk/id/local-Authority/30UE,26/09/2018,7.97,Amazon,Bloody Axe,Online Purchase,5244,Policy & Governance,Performance & Partnership
Chorley Borough Council,http://Statistics.Data.gov.uk/id/local-Authority/30UE,26/09/2018,26.36,Amazon UK,NIght of the living dead,Online Purchase,5244,Policy & Governance,Performance & Partnership
Chorley Borough Council,http://Statistics.Data.gov.uk/id/local-Authority/30UE,30/09/2018,191.64,Facebook,Facebook Receipt,Online Purchase,4301,Policy & Governance,Performance & Partnership
Chorley Borough Council,http://Statistics.Data.gov.uk/id/local-Authority/30UE,02/10/2018,52.90,United Utilities,Drainage search - Legal.,Online Purchase,4100,Policy & Governance,"Legal, Democratic & HR Service"
Chorley Borough Council,http://Statistics.Data.gov.uk/id/local-Authority/30UE,02/10/2018,330.81,INDEED,Indeed September 18 advertising.,Online Purchase,4400,Policy & Governance,"Legal, Democratic & HR Service"
Chorley Borough Council,http://Statistics.Data.gov.uk/id/local-Authority/30UE,02/10/2018,384.00,Billetto,Lancashire Tourism award tickets purchased for NAME REDACTED.,Online Purchase,4301,Policy & Governance,Communications & Events
Chorley Borough Council,http://Statistics.Data.gov.uk/id/local-Authority/30UE,05/10/2018,15.34,Survey MOnkey,ADDED ONTO SYSTEM AS MISSED OFF IN SEPTEMBER 2018,Online Purchase,5400,Chief Executive,Office of Chief Executive
Chorley Borough Council,http://Statistics.Data.gov.uk/id/local-Authority/30UE,05/10/2018,122.00,Premier Inn,Premier Inn hotel booking for Chorley Live.,Online Purchase,4301,Policy & Governance,Communications & Events
Chorley Borough Council,http://Statistics.Data.gov.uk/id/local-Authority/30UE,10/10/2018,3.40,UK Wristbands,**Extra monies added on as original amount didn`t have VAT on it** **ERROR AMEND**,Online Purchase,4336,Chief Executive,Office of Chief Executive
Chorley Borough Council,http://Statistics.Data.gov.uk/id/local-Authority/30UE,10/10/2018,23.98,UK Wristbands,Wristband order for NAME REDACTED.,Online Purchase,4336,Policy & Governance,"Legal, Democratic & HR Service"
Chorley Borough Council,http://Statistics.Data.gov.uk/id/local-Authority/30UE,11/10/2018,467.00,TRAINLINE,Train tickets for NAME REDACTED London event.,Online Purchase,4006,Policy & Governance,Communications & Events
Chorley Borough Council,http://Statistics.Data.gov.uk/id/local-Authority/30UE,23/10/2018,226.00,Pennine103Office,Magistrates Court Fee.,Court Fees,4614,Policy & Governance,"Legal, Democratic & HR Service"
Chorley Borough Council,http://Statistics.Data.gov.uk/id/local-Authority/30UE,24/10/2018,503.15,Indeed,Advertising on Indeed.com,Online Purchase,4400,Policy & Governance,Performance & Partnership
Chorley Borough Council,http://Statistics.Data.gov.uk/id/local-Authority/30UE,29/10/2018,"1,200.00",Survey Monkey,Survey Monkey Annual Plan,Online Purchase,5400,Policy & Governance,Performance & Partnership
Chorley Borough Council,http://Statistics.Data.gov.uk/id/local-Authority/30UE,31/10/2018,79.28,Indeed,Advertising on Indeed.com,Online Purchase,4400,Policy & Governance,Performance & Partnership
Chorley Borough Council,http://Statistics.Data.gov.uk/id/local-Authority/30UE,08/11/2018,501.31,Indeed,Advertising on Indeed,Online Purchase,4400,Policy & Governance,Performance & Partnership
Chorley Borough Council,http://Statistics.Data.gov.uk/id/local-Authority/30UE,09/11/2018,286.07,Facebook,Facebook Receipt,Online Purchase,4301,Policy & Governance,Performance & Partnership
Chorley Borough Council,http://Statistics.Data.gov.uk/id/local-Authority/30UE,09/11/2018,334.46,Facebook,Online Services,Online Purchase,4301,Policy & Governance,"Legal, Democratic & HR Service"
Chorley Borough Council,http://Statistics.Data.gov.uk/id/local-Authority/30UE,14/11/2018,48.00,Eventbrite,Event for NAME REDACTED,Online Purchase,4301,Chief Executive,Office of Chief Executive
Chorley Borough Council,http://Statistics.Data.gov.uk/id/local-Authority/30UE,14/11/2018,100.00,Wigan County Court,Court Fee,Court Fees,5125,Policy & Governance,"Legal, Democratic & HR Service"
Chorley Borough Council,http://Statistics.Data.gov.uk/id/local-Authority/30UE,15/11/2018,188.49,Survey Monkey,Survey Monkey - NAME REDACTED,Online Purchase,5400,Policy & Governance,"Legal, Democratic & HR Service"
Chorley Borough Council,http://Statistics.Data.gov.uk/id/local-Authority/30UE,27/11/2018,116.45,Trainline,Train Tickets to London for NAME REDACTED,Online Purchase,4006,Policy & Governance,"Legal, Democratic & HR Service"
Chorley Borough Council,http://Statistics.Data.gov.uk/id/local-Authority/30UE,30/11/2018,95.00,Facebook,Facebook Receipt,Online Purchase,4301,Policy & Governance,"Legal, Democratic & HR Service"
Chorley Borough Council,http://Statistics.Data.gov.uk/id/local-Authority/30UE,04/12/2018,22.93,UK Wristbands,NAME REDACTED used the card for this purchase,Online Purchase,4336,Policy & Governance,Performance & Partnership
Chorley Borough Council,http://Statistics.Data.gov.uk/id/local-Authority/30UE,05/12/2018,226.00,Reedley magistrates Court,Court Costs,Online Purchase,4614,Policy & Governance,Performance & Partnership
Chorley Borough Council,http://Statistics.Data.gov.uk/id/local-Authority/30UE,07/12/2018,151.20,Linked In,Job Views,Online Purchase,4618,Policy & Governance,"Legal, Democratic & HR Service"
Chorley Borough Council,http://Statistics.Data.gov.uk/id/local-Authority/30UE,19/12/2018,81.44,Eventbrite,Tactile Workshop for NAME REDACTED @ Astley Hall,Online Purchase,5244,Policy & Governance,Performance & Partnership
Chorley Borough Council,http://Statistics.Data.gov.uk/id/local-Authority/30UE,26/12/2018,600.00,Facebook,Facebook,Online Purchase,4301,Policy & Governance,"Legal, Democratic & HR Service"
Chorley Borough Council,http://Statistics.Data.gov.uk/id/local-Authority/30UE,31/12/2018,105.88,Facebook,Facebook,Online Purchase,4301,Policy & Governance,"Legal, Democratic & HR Service"
Chorley Borough Council,http://Statistics.Data.gov.uk/id/local-Authority/30UE,31/12/2018,299.94,Facebook,Advertising,Online Purchase,4301,Policy & Governance,Performance & Partnership
Chorley Borough Council,http://Statistics.Data.gov.uk/id/local-Authority/30UE,06/01/2019,150.31,Linked In,Linked In,Online Purchase,4618,Policy & Governance,"Legal, Democratic & HR Service"
Chorley Borough Council,http://Statistics.Data.gov.uk/id/local-Authority/30UE,07/01/2019,8.99,Amazon,Purchase for Mayors Ball,Online Purchase,4321,Policy & Governance,"Legal, Democratic & HR Service"
Chorley Borough Council,http://Statistics.Data.gov.uk/id/local-Authority/30UE,10/01/2019,13.98,Screwfix,Magnusson Angle Measurer,Online Purchase,4305,Policy & Governance,"Legal, Democratic & HR Service"
Chorley Borough Council,http://Statistics.Data.gov.uk/id/local-Authority/30UE,10/01/2019,92.16,South Survey Ltd,Fibreglass Tape Seco Fibreglass Tape Flag markers,Online Purchase,4305,Policy & Governance,"Legal, Democratic & HR Service"
Chorley Borough Council,http://Statistics.Data.gov.uk/id/local-Authority/30UE,12/01/2019,29.97,Amazon,Items for Astley Hall,Online Purchase,5244,Policy & Governance,"Legal, Democratic & HR Service"
Chorley Borough Council,http://Statistics.Data.gov.uk/id/local-Authority/30UE,15/01/2019,226.00,Magistrates Court,Court Fees,Online Purchase,4614,Policy & Governance,"Legal, Democratic & HR Service"
Chorley Borough Council,http://Statistics.Data.gov.uk/id/local-Authority/30UE,16/01/2019,60.00,Parking Ticket,Parking Ticket,Online Purchase,4322,Policy & Governance,"Legal, Democratic & HR Service"
Chorley Borough Council,http://Statistics.Data.gov.uk/id/local-Authority/30UE,18/01/2019,226.00,Magistrates Court,Court Fees,Online Purchase,4614,Policy & Governance,"Legal, Democratic & HR Service"
Chorley Borough Council,http://Statistics.Data.gov.uk/id/local-Authority/30UE,31/01/2019,113.29,Facebook,Winter Wonderland Christmas and New Year Campaign,Online Purchase,4301,Chief Executive,Office of Chief Executive
Chorley Borough Council,http://Statistics.Data.gov.uk/id/local-Authority/30UE,01/02/2019,7.47,Facebook,Traffic Campaign,Online Purchase,4301,Chief Executive,Office of Chief Executive
Chorley Borough Council,http://Statistics.Data.gov.uk/id/local-Authority/30UE,05/02/2019,149.86,LinkedIN,Job Views 06/01/2019 - 04/02/2019,Online Purchase,4400,Policy & Governance,Shared Financial Services
Chorley Borough Council,http://Statistics.Data.gov.uk/id/local-Authority/30UE,14/02/2019,72.85,Trainline,Train tickets for NAME REDACTED,Online Purchase,4100,Policy & Governance,"Legal, Democratic & HR Service"
Chorley Borough Council,http://Statistics.Data.gov.uk/id/local-Authority/30UE,15/02/2019,100.00,Wigan County Court,Court Fees Case Ref: DOOWN275,Online Purchase,5125,Policy & Governance,Performance & Partnership
Chorley Borough Council,http://Statistics.Data.gov.uk/id/local-Authority/30UE,19/02/2019,23.98,UK Wristbands,Gold Tyvek Wristbands,Online Purchase,4336,Policy & Governance,Performance & Partnership
Chorley Borough Council,http://Statistics.Data.gov.uk/id/local-Authority/30UE,20/02/2019,226.00,Reedley Magistrates Court,Court Fees CO8.1 DOH 21/3,Online Purchase,4614,Policy & Governance,Performance & Partnership
Chorley Borough Council,http://Statistics.Data.gov.uk/id/local-Authority/30UE,28/02/2019,92.53,Facebook,Advertising Services,Online Purchase,4301,Policy & Governance,Shared Financial Services
Chorley Borough Council,http://Statistics.Data.gov.uk/id/local-Authority/30UE,07/03/2019,148.53,LinkedIN,Direct Marketing / subsciption,Online Purchase,4400,Policy & Governance,Shared Financial Services
Chorley Borough Council,http://Statistics.Data.gov.uk/id/local-Authority/30UE,11/03/2019,226.00,Preston Magistrate,Court Costs - C08.1 Chorley BC Preston Mags,Online Purchase,4614,Chief Executive,Office of Chief Executive
Chorley Borough Council,http://Statistics.Data.gov.uk/id/local-Authority/30UE,12/03/2019,103.70,Merchant Ventures,Various items ordered for NAME REDACTED at Astley Hall,Online Purchase,5244,Chief Executive,Office of Chief Executive
Chorley Borough Council,http://Statistics.Data.gov.uk/id/local-Authority/30UE,19/03/2019,21.24,UK Wristbands,Premium custom printed gold Tyvek wristbands,Online Purchase,4324,Chief Executive,Office of Chief Executive
Chorley Borough Council,http://Statistics.Data.gov.uk/id/local-Authority/30UE,20/03/2019,100.00,Wigan Court Cost,Wigan court costs,Online Purchase,5125,Chief Executive,Office of Chief Executive
Chorley Borough Council,http://Statistics.Data.gov.uk/id/local-Authority/30UE,20/03/2019,142.00,Merchant Ventures,Hunt of the Unicorn Tapestry LC102 Medieval style lantern,Online Purchase,5244,Chief Executive,Office of Chief Executive
Chorley Borough Council,http://Statistics.Data.gov.uk/id/local-Authority/30UE,21/03/2019,99.99,Amazon,Sony Wireless Bluetooth noise Cancelling Headphones,Online Purchase,5400,Chief Executive,Office of Chief Executive
Chorley Borough Council,http://Statistics.Data.gov.uk/id/local-Authority/30UE,29/03/2019,44.50,Trainline,Train tickets for NAME REDACTED,Online Purchase,5400,Chief Executive,Office of Chief Executive
Chorley Borough Council,http://Statistics.Data.gov.uk/id/local-Authority/30UE,29/03/2019,51.00,Premier Inn,Room booked for NAME REDACTED,Online Purchase,5400,Chief Executive,Office of Chief Executive
Chorley Borough Council,http://Statistics.Data.gov.uk/id/local-Authority/30UE,31/03/2019,280.00,Facebook,Facebook campaign,Online Purchase,4301,Policy & Governance,"Legal, Democratic & HR Service"
Chorley Borough Council,http://Statistics.Data.gov.uk/id/local-Authority/30UE,17/09/2018,10.50,HM Courts,21 Liability Orders for NDR - 10.50,Court Fees,4310,Customer & Digital,Customer Transformation
Chorley Borough Council,http://Statistics.Data.gov.uk/id/local-Authority/30UE,22/10/2018,7.00,HM Courts,14 liability orders for unpaid business rates for a hearing date of 22.11.2018.,Court Fees,4310,Customer & Digital,Customer Transformation
Chorley Borough Council,http://Statistics.Data.gov.uk/id/local-Authority/30UE,20/11/2018,4.00,HM Courts,8 liability orders for unpaid business rates for a court hearing on 13.12.2018.,Court Fees,4310,Customer & Digital,Customer Transformation
Chorley Borough Council,http://Statistics.Data.gov.uk/id/local-Authority/30UE,17/12/2018,6.00,H M Courts,6 liability orders for unpaid business rates for a court hearing 17.01.2019.,Court Fees,4310,Customer & Digital,Customer Transformation
Chorley Borough Council,http://Statistics.Data.gov.uk/id/local-Authority/30UE,28/01/2019,9.50,H M Courts,19 liability orders for a court hearing date of 21.02.2019.,Court Fees,4310,Customer & Digital,Customer Transformation
Chorley Borough Council,http://Statistics.Data.gov.uk/id/local-Authority/30UE,18/02/2019,128.00,HM Courts,243 Council Tax and 13 NDR summonses for liability hearing 14.03.2019.,Court Fees,4310,Customer & Digital,Customer Transformation
Chorley Borough Council,http://Statistics.Data.gov.uk/id/local-Authority/30UE,18/03/2019,7.00,HM Courts,Liability orders for 14 cases for a court hearing on 25.04.2019.,Court Fees,4310,Customer & Digital,Customer Transformation
Chorley Borough Council,http://Statistics.Data.gov.uk/id/local-Authority/30UE,09/10/2018,202.50,dvla,PN66RCU tax,Road Tax,4736,Customer & Digital,Waste & Streetscene Services
Chorley Borough Council,http://Statistics.Data.gov.uk/id/local-Authority/30UE,09/10/2018,252.50,DVLA,FL66OSX vehicle tax,Road Tax,4736,Customer & Digital,Waste & Streetscene Services
Chorley Borough Council,http://Statistics.Data.gov.uk/id/local-Authority/30UE,09/10/2018,252.50,DVLA,FL66OKV vehicle tax,Road Tax,4736,Customer & Digital,Waste & Streetscene Services
Chorley Borough Council,http://Statistics.Data.gov.uk/id/local-Authority/30UE,09/10/2018,252.50,dvla,FL66OJR vehicle tax,Road Tax,4736,Customer & Digital,Waste & Streetscene Services
Chorley Borough Council,http://Statistics.Data.gov.uk/id/local-Authority/30UE,09/10/2018,252.50,dvla,FL66OJM tax,Road Tax,4736,Customer & Digital,Waste & Streetscene Services
Chorley Borough Council,http://Statistics.Data.gov.uk/id/local-Authority/30UE,09/10/2018,252.50,dvla,FL66OYW tax,Road Tax,4736,Customer & Digital,Waste & Streetscene Services
Chorley Borough Council,http://Statistics.Data.gov.uk/id/local-Authority/30UE,09/10/2018,252.50,dvla,FL66OWC tax,Road Tax,4736,Customer & Digital,Waste & Streetscene Services
Chorley Borough Council,http://Statistics.Data.gov.uk/id/local-Authority/30UE,09/10/2018,252.50,dvla,FL66OUX tax,Road Tax,4736,Customer & Digital,Waste & Streetscene Services
Chorley Borough Council,http://Statistics.Data.gov.uk/id/local-Authority/30UE,09/10/2018,252.50,dvla,FL66OTZ tax,Road Tax,4736,Customer & Digital,Waste & Streetscene Services
Chorley Borough Council,http://Statistics.Data.gov.uk/id/local-Authority/30UE,09/10/2018,252.50,dvla,FL66PFF tax,Road Tax,4736,Customer & Digital,Waste & Streetscene Services
Chorley Borough Council,http://Statistics.Data.gov.uk/id/local-Authority/30UE,09/10/2018,252.50,dvla,FL66PDK tax,Road Tax,4736,Customer & Digital,Waste & Streetscene Services
Chorley Borough Council,http://Statistics.Data.gov.uk/id/local-Authority/30UE,09/10/2018,252.50,dvla,FL66OZU tax,Road Tax,4736,Customer & Digital,Waste & Streetscene Services
Chorley Borough Council,http://Statistics.Data.gov.uk/id/local-Authority/30UE,09/10/2018,252.50,dvla,FL66OZH tax,Road Tax,4736,Customer & Digital,Waste & Streetscene Services
Chorley Borough Council,http://Statistics.Data.gov.uk/id/local-Authority/30UE,09/10/2018,252.50,dvla,FL66POJ,Road Tax,4736,Customer & Digital,Waste & Streetscene Services
Chorley Borough Council,http://Statistics.Data.gov.uk/id/local-Authority/30UE,09/10/2018,252.50,dvla,FL66PFG tax,Road Tax,4736,Customer & Digital,Waste & Streetscene Services
Chorley Borough Council,http://Statistics.Data.gov.uk/id/local-Authority/30UE,23/10/2018,414.00,Drainage Superstore,Manhole cover lifter,Online Purchase,4736,Customer & Digital,Waste & Streetscene Services
Chorley Borough Council,http://Statistics.Data.gov.uk/id/local-Authority/30UE,01/11/2018,152.25,National Rail,Return rail fare for NAME REDACTED and NAME REDACTED,Online Purchase,4736,Customer & Digital,Waste & Streetscene Services
Chorley Borough Council,http://Statistics.Data.gov.uk/id/local-Authority/30UE,11/12/2018,252.50,DVLA,Road tax for NJ10OTW,Road Tax,4736,Customer & Digital,Waste & Streetscene Services
Chorley Borough Council,http://Statistics.Data.gov.uk/id/local-Authority/30UE,07/01/2019,252.50,DVLA,NU08KOJ vehicle tax,Road Tax,4736,Customer & Digital,Waste & Streetscene Services
Chorley Borough Council,http://Statistics.Data.gov.uk/id/local-Authority/30UE,12/02/2019,252.50,DVLA,PN15YWB vehicle tax,Road Tax,4736,Customer & Digital,Waste & Streetscene Services
Chorley Borough Council,http://Statistics.Data.gov.uk/id/local-Authority/30UE,12/02/2019,252.50,DVLA,PO15VHF vehicle tax,Road Tax,4736,Customer & Digital,Waste & Streetscene Services
Chorley Borough Council,http://Statistics.Data.gov.uk/id/local-Authority/30UE,12/02/2019,252.50,DVLA,PO15VHE,Road Tax,4736,Customer & Digital,Waste & Streetscene Services
Chorley Borough Council,http://Statistics.Data.gov.uk/id/local-Authority/30UE,12/02/2019,252.50,DVLA,PO15VHD vehicle tax,Road Tax,4736,Customer & Digital,Waste & Streetscene Services
Chorley Borough Council,http://Statistics.Data.gov.uk/id/local-Authority/30UE,12/02/2019,252.50,DVLA,PO15VFZ vehicle tax,Road Tax,4736,Customer & Digital,Waste & Streetscene Services
Chorley Borough Council,http://Statistics.Data.gov.uk/id/local-Authority/30UE,05/03/2019,93.25,DVLA,Road Tax - 6 months,Road Tax,4736,Customer & Digital,Waste & Streetscene Services
